[Event "*** Titled Tuesday Blitz"]
[Site "Chess.com"]
[Date "2019.08.06"]
[Round "2"]
[White "David_Paravyan"]
[Black "AlexanderKing"]
[Result "1-0"]
[WhiteElo "2894"]
[BlackElo "2671"]
[TimeControl "180+2"]
[EndTime "13:23:34 PDT"]
[Termination "David_Paravyan won by resignation"]

1. e4 {[%clk 0:02:54.4]} 1... e5 {[%clk 0:03:01]} 2. Nf3 {[%clk 0:02:54.8]} 2...
Nc6 {[%clk 0:03:02.5]} 3. Bb5 {[%clk 0:02:55.5]} 3... Nf6 {[%clk 0:03:03.7]} 4.
O-O {[%clk 0:02:50.8]} 4... Nxe4 {[%clk 0:03:04.6]} 5. Re1 {[%clk 0:02:52.4]}
5... Nd6 {[%clk 0:03:05.9]} 6. Nxe5 {[%clk 0:02:54]} 6... Be7 {[%clk 0:03:07.1]}
7. Bf1 {[%clk 0:02:53.5]} 7... Nxe5 {[%clk 0:03:08.1]} 8. Rxe5 {[%clk
0:02:55.4]} 8... O-O {[%clk 0:03:09.7]} 9. d4 {[%clk 0:02:56.6]} 9... Bf6 {[%clk
0:03:11.3]} 10. Re1 {[%clk 0:02:57.5]} 10... Nf5 {[%clk 0:03:12.8]} 11. d5
{[%clk 0:02:57.1]} 11... Re8 {[%clk 0:03:02.5]} 12. Rxe8+ {[%clk 0:02:55.2]}
12... Qxe8 {[%clk 0:03:04.4]} 13. Qd3 {[%clk 0:02:54.1]} 13... d6 {[%clk
0:03:03.7]} 14. Nd2 {[%clk 0:02:53.5]} 14... Nh4 {[%clk 0:02:59.8]} 15. Ne4
{[%clk 0:02:48.1]} 15... Be7 {[%clk 0:02:41.6]} 16. g3 {[%clk 0:02:45.3]} 16...
Ng6 {[%clk 0:02:38.5]} 17. Bd2 {[%clk 0:02:41.3]} 17... Bf5 {[%clk 0:02:30.7]}
18. Re1 {[%clk 0:02:33.1]} 18... Qd7 {[%clk 0:02:31.5]} 19. Qb3 {[%clk
0:02:30.1]} 19... c6 {[%clk 0:02:23]} 20. Bg2 {[%clk 0:02:15.4]} 20... Re8
{[%clk 0:02:23]} 21. Nc3 {[%clk 0:02:14.3]} 21... c5 {[%clk 0:02:14.7]} 22. Qb5
{[%clk 0:01:39.2]} 22... Kf8 {[%clk 0:01:57.5]} 23. Be4 {[%clk 0:01:33]} 23...
a6 {[%clk 0:01:50.4]} 24. Qe2 {[%clk 0:00:54.7]} 24... Bxe4 {[%clk 0:01:24.4]}
25. Nxe4 {[%clk 0:00:43.3]} 25... Qf5 {[%clk 0:01:11.2]} 26. Nxd6 {[%clk
0:00:40.3]} 26... Qxd5 {[%clk 0:01:04.7]} 27. Nxe8 {[%clk 0:00:41.5]} 27... Kxe8
{[%clk 0:01:05.9]} 28. Bc3 {[%clk 0:00:42.6]} 28... f6 {[%clk 0:00:58.4]} 29. h4
{[%clk 0:00:43.2]} 29... h5 {[%clk 0:00:54.5]} 30. Rd1 {[%clk 0:00:42.6]} 30...
Qf5 {[%clk 0:00:33.8]} 31. Qd3 {[%clk 0:00:43.6]} 31... Qxd3 {[%clk 0:00:33]}
32. Rxd3 {[%clk 0:00:43.3]} 32... Nf8 {[%clk 0:00:34]} 33. Rd5 {[%clk
0:00:40.8]} 33... g6 {[%clk 0:00:30.4]} 34. a4 {[%clk 0:00:42.3]} 34... Ne6
{[%clk 0:00:30.1]} 35. b3 {[%clk 0:00:42.5]} 35... Nc7 {[%clk 0:00:29.6]} 36.
Rd3 {[%clk 0:00:43.1]} 36... b5 {[%clk 0:00:28.6]} 37. axb5 {[%clk 0:00:44]}
37... axb5 {[%clk 0:00:30.5]} 38. Kf1 {[%clk 0:00:44.5]} 38... Ne6 {[%clk
0:00:25.9]} 39. Ke2 {[%clk 0:00:41.9]} 39... Nf8 {[%clk 0:00:21.4]} 40. Bb2
{[%clk 0:00:42.5]} 40... Kf7 {[%clk 0:00:21.8]} 41. c4 {[%clk 0:00:41.2]} 41...
bxc4 {[%clk 0:00:21.9]} 42. bxc4 {[%clk 0:00:43.1]} 42... Ke6 {[%clk 0:00:23.1]}
43. Re3+ {[%clk 0:00:42.1]} 43... Kd7 {[%clk 0:00:22.9]} 44. Ra3 {[%clk
0:00:42.3]} 44... Ke6 {[%clk 0:00:20.2]} 45. Kd3 {[%clk 0:00:41]} 45... Nd7
{[%clk 0:00:20]} 46. Ra6+ {[%clk 0:00:40.7]} 46... Kf7 {[%clk 0:00:19.6]} 47.
Ke4 {[%clk 0:00:38.7]} 47... g5 {[%clk 0:00:13.3]} 48. Kf5 {[%clk 0:00:28.9]}
48... gxh4 {[%clk 0:00:13.2]} 49. gxh4 {[%clk 0:00:30.8]} 49... Nf8 {[%clk
0:00:13]} 50. Bxf6 {[%clk 0:00:29.4]} 1-0

[Event "*** Titled Tuesday Blitz"]
[Site "Chess.com"]
[Date "2019.08.06"]
[Round "2"]
[White "platy3"]
[Black "Alexander_Donchenko"]
[Result "1-0"]
[WhiteElo "2878"]
[BlackElo "2684"]
[TimeControl "180+2"]
[EndTime "13:23:36 PDT"]
[Termination "platy3 won on time"]

1. e4 {[%clk 0:03:00.3]} 1... c6 {[%clk 0:03:01.3]} 2. d4 {[%clk 0:03:00.2]}
2... d5 {[%clk 0:03:03.2]} 3. e5 {[%clk 0:02:58.1]} 3... Bf5 {[%clk 0:03:04]} 4.
Nf3 {[%clk 0:02:59.1]} 4... e6 {[%clk 0:03:05.4]} 5. Be2 {[%clk 0:03:00.1]} 5...
c5 {[%clk 0:03:06.5]} 6. c3 {[%clk 0:02:56.8]} 6... Nc6 {[%clk 0:03:06.8]} 7.
O-O {[%clk 0:02:57.8]} 7... cxd4 {[%clk 0:03:07.2]} 8. Nxd4 {[%clk 0:02:58]}
8... Nge7 {[%clk 0:03:07.4]} 9. Nxf5 {[%clk 0:02:58.6]} 9... Nxf5 {[%clk
0:03:08.5]} 10. Bd3 {[%clk 0:02:59.8]} 10... g6 {[%clk 0:03:08.9]} 11. Qe2
{[%clk 0:02:58.9]} 11... Bg7 {[%clk 0:03:09.3]} 12. f4 {[%clk 0:02:59.8]} 12...
O-O {[%clk 0:03:10.3]} 13. Nd2 {[%clk 0:03:00.9]} 13... f6 {[%clk 0:03:11]} 14.
exf6 {[%clk 0:03:01.1]} 14... Qxf6 {[%clk 0:03:12.9]} 15. Nf3 {[%clk 0:03:02.3]}
15... Rae8 {[%clk 0:03:14.5]} 16. Bd2 {[%clk 0:03:02.3]} 16... Qd8 {[%clk
0:03:14.9]} 17. Kh1 {[%clk 0:03:00.9]} 17... Qc7 {[%clk 0:03:15]} 18. Rae1
{[%clk 0:03:00.8]} 18... a6 {[%clk 0:03:15.3]} 19. Qd1 {[%clk 0:03:00.8]} 19...
e5 {[%clk 0:03:12.6]} 20. Qb3 {[%clk 0:02:54.1]} 20... Nfe7 {[%clk 0:02:41.8]}
21. fxe5 {[%clk 0:02:41.7]} 21... Nxe5 {[%clk 0:02:41.3]} 22. Nxe5 {[%clk
0:02:43]} 22... Bxe5 {[%clk 0:02:29.7]} 23. g3 {[%clk 0:01:53.5]} 23... Rxf1+
{[%clk 0:02:16.1]} 24. Bxf1 {[%clk 0:01:52.8]} 24... Kg7 {[%clk 0:01:55.7]} 25.
Bg2 {[%clk 0:01:52.8]} 25... Rd8 {[%clk 0:01:40.2]} 26. Bg5 {[%clk 0:01:46.1]}
26... Bf6 {[%clk 0:01:15.3]} 27. Bxf6+ {[%clk 0:01:34.2]} 27... Kxf6 {[%clk
0:01:17.2]} 28. Qb4 {[%clk 0:01:35.3]} 28... Nf5 {[%clk 0:00:43]} 29. g4 {[%clk
0:01:30.9]} 29... a5 {[%clk 0:00:41.7]} 30. Qa4 {[%clk 0:01:28.8]} 30... Ne7
{[%clk 0:00:20]} 31. Qd4+ {[%clk 0:01:30]} 31... Kf7 {[%clk 0:00:21.4]} 32. Rf1+
{[%clk 0:01:30.5]} 32... Kg8 {[%clk 0:00:22.6]} 33. Qf6 {[%clk 0:01:31.7]} 33...
Qd6 {[%clk 0:00:15.7]} 34. Qf7+ {[%clk 0:01:32.8]} 34... Kh8 {[%clk 0:00:17.3]}
35. Re1 {[%clk 0:01:34.7]} 35... Nc6 {[%clk 0:00:09.9]} 36. Qxb7 {[%clk
0:01:23.2]} 36... Ne5 {[%clk 0:00:08.4]} 37. h3 {[%clk 0:01:11.1]} 37... d4
{[%clk 0:00:07.2]} 38. Qe4 {[%clk 0:01:08.8]} 38... dxc3 {[%clk 0:00:07.1]} 39.
bxc3 {[%clk 0:01:07.4]} 39... Nd3 {[%clk 0:00:08.8]} 40. Rf1 {[%clk 0:01:08]}
40... Ne5 {[%clk 0:00:07.4]} 41. Qf4 {[%clk 0:00:59]} 41... Nd3 {[%clk
0:00:03.1]} 42. Qe3 {[%clk 0:00:54]} 42... Nc5 {[%clk 0:00:02]} 43. Bf3 {[%clk
0:00:51.6]} 43... Rf8 {[%clk 0:00:03.5]} 44. Rd1 {[%clk 0:00:49.5]} 44... Qc7
{[%clk 0:00:03.4]} 45. Bd5 {[%clk 0:00:47]} 45... Nd7 {[%clk 0:00:03.6]} 46. Re1
{[%clk 0:00:38.2]} 46... Nf6 {[%clk 0:00:04.6]} 47. Bg2 {[%clk 0:00:39.1]} 47...
Rc8 {[%clk 0:00:05.2]} 48. Rf1 {[%clk 0:00:37.8]} 48... Kg7 {[%clk 0:00:05.5]}
49. g5 {[%clk 0:00:32.9]} 49... Nd7 {[%clk 0:00:04.1]} 50. Qe7+ {[%clk
0:00:32.7]} 50... Kh8 {[%clk 0:00:04.8]} 51. Rf7 {[%clk 0:00:33.7]} 1-0

[Event "*** Titled Tuesday Blitz"]
[Site "Chess.com"]
[Date "2019.08.06"]
[Round "2"]
[White "dawtonlms"]
[Black "nocnypako"]
[Result "0-1"]
[WhiteElo "2415"]
[BlackElo "2573"]
[TimeControl "180+2"]
[EndTime "13:23:39 PDT"]
[Termination "nocnypako won by resignation"]

1. d4 {[%clk 0:03:01.9]} 1... d5 {[%clk 0:02:59.8]} 2. c4 {[%clk 0:03:02.2]}
2... c6 {[%clk 0:03:01.4]} 3. Nf3 {[%clk 0:03:02.5]} 3... Nf6 {[%clk 0:03:03]}
4. e3 {[%clk 0:03:03.8]} 4... Bf5 {[%clk 0:03:03.1]} 5. Nc3 {[%clk 0:02:59.6]}
5... e6 {[%clk 0:03:04.3]} 6. Nh4 {[%clk 0:03:00]} 6... Bg6 {[%clk 0:03:05.5]}
7. Qb3 {[%clk 0:03:00.2]} 7... Qc7 {[%clk 0:03:05.4]} 8. Bd2 {[%clk 0:02:56]}
8... Nbd7 {[%clk 0:03:04.5]} 9. Be2 {[%clk 0:02:53.7]} 9... Be7 {[%clk
0:03:03.6]} 10. Rc1 {[%clk 0:02:42.2]} 10... Rc8 {[%clk 0:02:52.1]} 11. O-O
{[%clk 0:02:24]} 11... O-O {[%clk 0:02:48.5]} 12. Nxg6 {[%clk 0:02:24.5]} 12...
hxg6 {[%clk 0:02:50.4]} 13. Rfd1 {[%clk 0:02:24.1]} 13... Qb8 {[%clk 0:02:46]}
14. h3 {[%clk 0:02:23.2]} 14... Rfd8 {[%clk 0:02:42.2]} 15. Bf3 {[%clk
0:02:23.4]} 15... dxc4 {[%clk 0:02:36.3]} 16. Qxc4 {[%clk 0:02:24.2]} 16... c5
{[%clk 0:02:35.6]} 17. e4 {[%clk 0:01:55.7]} 17... Nb6 {[%clk 0:02:20.9]} 18.
Qb5 {[%clk 0:01:23.5]} 18... cxd4 {[%clk 0:02:19.1]} 19. e5 {[%clk 0:01:24.7]}
19... dxc3 {[%clk 0:02:10.9]} 20. exf6 {[%clk 0:01:25.6]} 20... Bxf6 {[%clk
0:01:56.6]} 21. Bxc3 {[%clk 0:01:21.2]} 21... Rxd1+ {[%clk 0:01:56.3]} 22. Rxd1
{[%clk 0:01:08.2]} 22... Bxc3 {[%clk 0:01:56.1]} 23. bxc3 {[%clk 0:01:09.7]}
23... Rxc3 {[%clk 0:01:52.7]} 24. Qg5 {[%clk 0:01:10.9]} 24... Rc8 {[%clk
0:01:49.5]} 25. Qe7 {[%clk 0:01:12.1]} 25... Qc7 {[%clk 0:01:45.9]} 26. Qa3
{[%clk 0:01:07.9]} 26... a6 {[%clk 0:01:38.8]} 27. Qb4 {[%clk 0:01:05.7]} 27...
Nd5 {[%clk 0:01:05.1]} 28. Bxd5 {[%clk 0:01:02.7]} 28... exd5 {[%clk 0:01:07]}
29. Rxd5 {[%clk 0:01:04.4]} 29... b5 {[%clk 0:01:08.4]} 30. Qd6 {[%clk
0:01:01.9]} 30... Qxd6 {[%clk 0:00:52.5]} 31. Rxd6 {[%clk 0:01:03.8]} 31... Rc1+
{[%clk 0:00:49.8]} 32. Kh2 {[%clk 0:01:03.3]} 32... Rc2 {[%clk 0:00:50.6]} 33.
Rxa6 {[%clk 0:01:02.6]} 33... Rxf2 {[%clk 0:00:51.3]} 34. Kg3 {[%clk 0:01:01.5]}
34... Rb2 {[%clk 0:00:46.4]} 35. Kf3 {[%clk 0:01:01.1]} 35... f6 {[%clk
0:00:43.6]} 36. Ra7 {[%clk 0:01:01.4]} 36... g5 {[%clk 0:00:43.9]} 37. g3 {[%clk
0:01:01.4]} 37... Kh7 {[%clk 0:00:43.9]} 38. Kg4 {[%clk 0:00:54]} 38... Kg6
{[%clk 0:00:44.8]} 39. Ra6 {[%clk 0:00:53.5]} 39... Rf2 {[%clk 0:00:38.4]} 40.
h4 {[%clk 0:00:52.7]} 40... gxh4 {[%clk 0:00:39]} 41. Kxh4 {[%clk 0:00:54]}
41... Rb2 {[%clk 0:00:39.4]} 42. Kg4 {[%clk 0:00:55.2]} 42... Rb4+ {[%clk
0:00:38.7]} 43. Kf3 {[%clk 0:00:55.4]} 43... Kf5 {[%clk 0:00:38.4]} 44. Ra7
{[%clk 0:00:55.8]} 44... g5 {[%clk 0:00:39.3]} 45. Ra5 {[%clk 0:00:47.2]} 45...
g4+ {[%clk 0:00:39.2]} 46. Kf2 {[%clk 0:00:46.2]} 46... Ke4 {[%clk 0:00:37.5]}
47. Ra8 {[%clk 0:00:45.7]} 47... Rb2+ {[%clk 0:00:38.3]} 48. Ke1 {[%clk
0:00:42.9]} 48... Kf3 {[%clk 0:00:39.5]} 49. Ra3+ {[%clk 0:00:38.4]} 49... Kg2
{[%clk 0:00:40.4]} 50. Kd1 {[%clk 0:00:36.3]} 50... f5 {[%clk 0:00:40.6]} 51.
Ke1 {[%clk 0:00:24]} 51... Rf2 {[%clk 0:00:37.6]} 52. Rb3 {[%clk 0:00:17.7]}
52... Rf3 {[%clk 0:00:38.3]} 53. Rxb5 {[%clk 0:00:18.4]} 53... Kxg3 {[%clk
0:00:36.3]} 54. a4 {[%clk 0:00:17.8]} 54... f4 {[%clk 0:00:37.5]} 0-1

[Event "*** Titled Tuesday Blitz"]
[Site "Chess.com"]
[Date "2019.08.06"]
[Round "2"]
[White "farzadbfd"]
[Black "sergiochess83"]
[Result "1/2-1/2"]
[WhiteElo "2673"]
[BlackElo "2899"]
[TimeControl "180+2"]
[EndTime "13:23:40 PDT"]
[Termination "Game drawn by repetition"]

1. e4 {[%clk 0:03:00]} 1... c6 {[%clk 0:02:58.4]} 2. d4 {[%clk 0:03:00.5]} 2...
d5 {[%clk 0:02:59.4]} 3. exd5 {[%clk 0:03:02.4]} 3... cxd5 {[%clk 0:03:00.3]} 4.
Bd3 {[%clk 0:03:04.1]} 4... Nc6 {[%clk 0:03:00.5]} 5. c3 {[%clk 0:03:05.2]} 5...
Qc7 {[%clk 0:02:59.4]} 6. Ne2 {[%clk 0:03:05.9]} 6... Bg4 {[%clk 0:02:58.7]} 7.
f3 {[%clk 0:03:06.4]} 7... Bh5 {[%clk 0:02:55.3]} 8. Bf4 {[%clk 0:03:07.4]} 8...
Qd7 {[%clk 0:02:55.1]} 9. O-O {[%clk 0:03:06]} 9... e6 {[%clk 0:02:55.7]} 10.
Nd2 {[%clk 0:03:06.5]} 10... Bg6 {[%clk 0:02:55.5]} 11. Nb3 {[%clk 0:03:07.4]}
11... Nf6 {[%clk 0:02:54.5]} 12. a4 {[%clk 0:03:06.1]} 12... Be7 {[%clk
0:02:52.8]} 13. Bg3 {[%clk 0:02:54.8]} 13... O-O {[%clk 0:02:43.4]} 14. Nf4
{[%clk 0:02:55.4]} 14... Bd6 {[%clk 0:02:24.4]} 15. Bxg6 {[%clk 0:02:56]} 15...
hxg6 {[%clk 0:02:24.5]} 16. Nd3 {[%clk 0:02:56.5]} 16... Qc7 {[%clk 0:02:23.3]}
17. Kf2 {[%clk 0:02:40.5]} 17... b6 {[%clk 0:02:19]} 18. Qe2 {[%clk 0:02:22.4]}
18... Nd7 {[%clk 0:02:15.8]} 19. Rh1 {[%clk 0:02:04.2]} 19... Rfe8 {[%clk
0:02:11.2]} 20. Bxd6 {[%clk 0:01:52.7]} 20... Qxd6 {[%clk 0:02:11.8]} 21. f4
{[%clk 0:01:18.1]} 21... f5 {[%clk 0:01:27.4]} 22. Ne5 {[%clk 0:01:12.4]} 22...
Ncxe5 {[%clk 0:01:26.1]} 23. fxe5 {[%clk 0:01:04]} 23... Qe7 {[%clk 0:01:28]}
24. h4 {[%clk 0:01:01.9]} 24... Kf7 {[%clk 0:01:19.9]} 25. Nd2 {[%clk
0:00:55.5]} 25... Nf8 {[%clk 0:00:43.3]} 26. Nf3 {[%clk 0:00:56.3]} 26... Nh7
{[%clk 0:00:44.3]} 27. a5 {[%clk 0:00:48.6]} 27... Qb7 {[%clk 0:00:34.2]} 28.
Qb5 {[%clk 0:00:28.1]} 28... Reb8 {[%clk 0:00:20.8]} 29. axb6 {[%clk 0:00:15.8]}
29... Qxb6 {[%clk 0:00:21.9]} 30. Qd7+ {[%clk 0:00:16.5]} 30... Kg8 {[%clk
0:00:22.6]} 31. Ra2 {[%clk 0:00:15]} 31... Rb7 {[%clk 0:00:19.3]} 32. Qa4 {[%clk
0:00:15.6]} 32... Qc7 {[%clk 0:00:10.5]} 33. Rha1 {[%clk 0:00:16.3]} 33... Rab8
{[%clk 0:00:10.2]} 34. Qc2 {[%clk 0:00:15]} 34... Qe7 {[%clk 0:00:10.8]} 35. Qd2
{[%clk 0:00:15]} 35... Kh8 {[%clk 0:00:09.4]} 36. b4 {[%clk 0:00:13.2]} 36...
Rc8 {[%clk 0:00:09.4]} 37. Ra5 {[%clk 0:00:14.6]} 37... Kg8 {[%clk 0:00:05.8]}
38. Rc5 {[%clk 0:00:15.8]} 38... Rxc5 {[%clk 0:00:05.4]} 39. dxc5 {[%clk
0:00:15.5]} 39... Qd8 {[%clk 0:00:03.5]} 40. Ra5 {[%clk 0:00:16]} 40... Qe7
{[%clk 0:00:04.8]} 41. Qa2 {[%clk 0:00:16.5]} 41... g5 {[%clk 0:00:05.6]} 42.
hxg5 {[%clk 0:00:17.3]} 42... Nxg5 {[%clk 0:00:06.8]} 43. Nxg5 {[%clk
0:00:18.6]} 43... Qxg5 {[%clk 0:00:07.9]} 44. Rxa7 {[%clk 0:00:20.3]} 44... Qf4+
{[%clk 0:00:08.2]} 45. Kg1 {[%clk 0:00:18.2]} 45... Qe3+ {[%clk 0:00:08.2]} 46.
Kf1 {[%clk 0:00:19]} 46... Qf4+ {[%clk 0:00:08.2]} 47. Kg1 {[%clk 0:00:19]}
47... Qe3+ {[%clk 0:00:09]} 48. Kf1 {[%clk 0:00:20.2]} 48... Qf4+ {[%clk
0:00:09.6]} 49. Ke1 {[%clk 0:00:18.7]} 49... Qe3+ {[%clk 0:00:06.8]} 50. Kf1
{[%clk 0:00:20.1]} 1/2-1/2

[Event "*** Titled Tuesday Blitz"]
[Site "Chess.com"]
[Date "2019.08.06"]
[Round "2"]
[White "JozefKneht"]
[Black "amatatanav"]
[Result "0-1"]
[WhiteElo "2340"]
[BlackElo "2505"]
[TimeControl "180+2"]
[EndTime "13:23:43 PDT"]
[Termination "amatatanav won by checkmate"]

1. d4 {[%clk 0:03:01.9]} 1... Nf6 {[%clk 0:03:00.6]} 2. Bf4 {[%clk 0:03:02.5]}
2... d5 {[%clk 0:03:00.9]} 3. e3 {[%clk 0:03:03.1]} 3... c5 {[%clk 0:03:01.4]}
4. c3 {[%clk 0:03:04.2]} 4... Nc6 {[%clk 0:03:00.3]} 5. Nd2 {[%clk 0:03:04]}
5... Bf5 {[%clk 0:02:58.3]} 6. Qb3 {[%clk 0:02:56.6]} 6... Qc8 {[%clk
0:02:54.6]} 7. Ngf3 {[%clk 0:02:51.4]} 7... h6 {[%clk 0:02:52.4]} 8. Bb5 {[%clk
0:02:47.6]} 8... c4 {[%clk 0:02:15.1]} 9. Qa4 {[%clk 0:02:43]} 9... a6 {[%clk
0:02:14.5]} 10. Bxc6+ {[%clk 0:02:43.5]} 10... Qxc6 {[%clk 0:02:13.2]} 11. Qxc6+
{[%clk 0:02:39.8]} 11... bxc6 {[%clk 0:02:15.1]} 12. b3 {[%clk 0:02:37.9]} 12...
cxb3 {[%clk 0:02:07.7]} 13. axb3 {[%clk 0:02:39.8]} 13... Nh5 {[%clk 0:02:02.1]}
14. Bc7 {[%clk 0:02:24.7]} 14... g5 {[%clk 0:01:18.5]} 15. b4 {[%clk 0:02:03.8]}
15... g4 {[%clk 0:01:11.1]} 16. Nh4 {[%clk 0:01:26.7]} 16... Bd3 {[%clk
0:00:58.5]} 17. Nb3 {[%clk 0:01:24]} 17... e6 {[%clk 0:00:55.3]} 18. g3 {[%clk
0:01:10.3]} 18... Be7 {[%clk 0:00:52.6]} 19. Ng2 {[%clk 0:01:10.4]} 19... Bc4
{[%clk 0:00:24.3]} 20. Nc5 {[%clk 0:01:05.1]} 20... O-O {[%clk 0:00:23.4]} 21.
Nf4 {[%clk 0:01:01.9]} 21... Nxf4 {[%clk 0:00:23.1]} 22. Bxf4 {[%clk 0:00:59.2]}
22... Bxc5 {[%clk 0:00:19.5]} 23. bxc5 {[%clk 0:00:52.5]} 23... Kg7 {[%clk
0:00:15.1]} 24. Kd2 {[%clk 0:00:52.3]} 24... a5 {[%clk 0:00:13.7]} 25. Rhb1
{[%clk 0:00:49.6]} 25... Bb5 {[%clk 0:00:14.2]} 26. Bc7 {[%clk 0:00:47.4]} 26...
a4 {[%clk 0:00:15.1]} 27. Bd6 {[%clk 0:00:46]} 27... Rfe8 {[%clk 0:00:15.7]} 28.
Rh1 {[%clk 0:00:35.8]} 28... f6 {[%clk 0:00:11]} 29. h3 {[%clk 0:00:23.4]} 29...
gxh3 {[%clk 0:00:11.5]} 30. Rxh3 {[%clk 0:00:24.8]} 30... e5 {[%clk 0:00:13.4]}
31. Rah1 {[%clk 0:00:20.5]} 31... exd4 {[%clk 0:00:12.1]} 32. cxd4 {[%clk
0:00:20.5]} 32... Rh8 {[%clk 0:00:10.5]} 33. Ra1 {[%clk 0:00:19.6]} 33... a3
{[%clk 0:00:10.9]} 34. Rhh1 {[%clk 0:00:19.4]} 34... a2 {[%clk 0:00:11.9]} 35.
Rhc1 {[%clk 0:00:20.2]} 35... Bc4 {[%clk 0:00:12.1]} 36. Rc2 {[%clk 0:00:20.3]}
36... h5 {[%clk 0:00:12.5]} 37. Rb2 {[%clk 0:00:20.4]} 37... h4 {[%clk
0:00:13.5]} 38. gxh4 {[%clk 0:00:20.3]} 38... Rxh4 {[%clk 0:00:14.5]} 39. Rb7+
{[%clk 0:00:22]} 39... Kg6 {[%clk 0:00:14.3]} 40. Bg3 {[%clk 0:00:23.6]} 40...
Rh7 {[%clk 0:00:14.1]} 41. Rb6 {[%clk 0:00:23.4]} 41... Bb5 {[%clk 0:00:14.7]}
42. Kc3 {[%clk 0:00:23]} 42... Rha7 {[%clk 0:00:10.3]} 43. Kb2 {[%clk
0:00:23.6]} 43... Ra4 {[%clk 0:00:10.7]} 44. Rb8 {[%clk 0:00:24.3]} 44... R8a7
{[%clk 0:00:11]} 45. Rg8+ {[%clk 0:00:24.3]} 45... Kf5 {[%clk 0:00:12]} 46. Rh8
{[%clk 0:00:20.8]} 46... Ke4 {[%clk 0:00:11.9]} 47. Rf8 {[%clk 0:00:20.6]} 47...
Kd3 {[%clk 0:00:10.5]} 48. Rxf6 {[%clk 0:00:20.5]} 48... Kd2 {[%clk 0:00:11.4]}
49. Kb3 {[%clk 0:00:10.2]} 49... Bc4+ {[%clk 0:00:11.9]} 50. Kb2 {[%clk
0:00:10.5]} 50... Rb4# {[%clk 0:00:13.1]} 0-1

[Event "*** Titled Tuesday Blitz"]
[Site "Chess.com"]
[Date "2019.08.06"]
[Round "2"]
[White "ZenBull"]
[Black "Sveta10"]
[Result "1-0"]
[WhiteElo "2123"]
[BlackElo "2061"]
[TimeControl "180+2"]
[EndTime "13:23:46 PDT"]
[Termination "ZenBull won by resignation"]

1. Nf3 {[%clk 0:03:00.3]} 1... Nf6 {[%clk 0:03:00.7]} 2. c4 {[%clk 0:03:00.6]}
2... g6 {[%clk 0:02:59.4]} 3. Nc3 {[%clk 0:03:01.4]} 3... Bg7 {[%clk 0:03:00.8]}
4. e4 {[%clk 0:03:03.1]} 4... d6 {[%clk 0:03:01.9]} 5. d4 {[%clk 0:03:04.6]}
5... O-O {[%clk 0:03:03.1]} 6. h3 {[%clk 0:03:05.7]} 6... e5 {[%clk 0:02:59]} 7.
d5 {[%clk 0:03:05.2]} 7... Nh5 {[%clk 0:02:55]} 8. Nh2 {[%clk 0:03:02.7]} 8...
Na6 {[%clk 0:02:39.6]} 9. g3 {[%clk 0:02:56.2]} 9... Qe8 {[%clk 0:02:13.6]} 10.
Be2 {[%clk 0:02:56.6]} 10... Nf6 {[%clk 0:02:08.3]} 11. Ng4 {[%clk 0:02:52.1]}
11... Nc5 {[%clk 0:02:03.2]} 12. Qc2 {[%clk 0:02:48.9]} 12... Nfxe4 {[%clk
0:01:45.9]} 13. Nxe4 {[%clk 0:02:46.6]} 13... Nxe4 {[%clk 0:01:47.5]} 14. Qxe4
{[%clk 0:02:45.3]} 14... f5 {[%clk 0:01:48.9]} 15. Qc2 {[%clk 0:02:43.9]} 15...
fxg4 {[%clk 0:01:49.6]} 16. hxg4 {[%clk 0:02:45.8]} 16... e4 {[%clk 0:01:37.6]}
17. Be3 {[%clk 0:02:39.2]} 17... Bd7 {[%clk 0:01:29.7]} 18. O-O-O {[%clk
0:02:33.5]} 18... Ba4 {[%clk 0:01:09.8]} 19. b3 {[%clk 0:02:29.1]} 19... Bd7
{[%clk 0:01:11.2]} 20. Bd4 {[%clk 0:02:26.5]} 20... Qf7 {[%clk 0:01:11.9]} 21.
Rh2 {[%clk 0:02:17.6]} 21... Rae8 {[%clk 0:01:04.9]} 22. Bxg7 {[%clk 0:02:11.1]}
22... Qxg7 {[%clk 0:01:06.8]} 23. Rdh1 {[%clk 0:02:09.5]} 23... Rf7 {[%clk
0:00:54.7]} 24. Kb1 {[%clk 0:02:03.9]} 24... Qe5 {[%clk 0:00:49.1]} 25. Qb2
{[%clk 0:01:56.8]} 25... Qxb2+ {[%clk 0:00:48.3]} 26. Kxb2 {[%clk 0:01:57.8]}
26... g5 {[%clk 0:00:41.3]} 27. Kc3 {[%clk 0:01:52.3]} 27... e3 {[%clk
0:00:41.9]} 28. f3 {[%clk 0:01:51.5]} 28... c6 {[%clk 0:00:36]} 29. Kd4 {[%clk
0:01:46.4]} 29... c5+ {[%clk 0:00:29.2]} 30. Kd3 {[%clk 0:01:45.3]} 30... b5
{[%clk 0:00:26.4]} 31. Rh6 {[%clk 0:01:43.8]} 31... bxc4+ {[%clk 0:00:25.9]} 32.
bxc4 {[%clk 0:01:45.7]} 32... Ree7 {[%clk 0:00:12.6]} 33. Rxd6 {[%clk
0:01:45.9]} 33... Be8 {[%clk 0:00:14.2]} 34. Rhh6 {[%clk 0:01:36.4]} 34... Rf8
{[%clk 0:00:13.2]} 35. Rde6 {[%clk 0:01:34.1]} 35... Rb7 {[%clk 0:00:09.5]} 36.
Rxe3 {[%clk 0:01:31.2]} 36... Bg6+ {[%clk 0:00:11]} 37. Kc3 {[%clk 0:01:24.5]}
37... Rb1 {[%clk 0:00:11.4]} 38. Bd3 {[%clk 0:01:20.8]} 38... Rc1+ {[%clk
0:00:12.2]} 39. Kd2 {[%clk 0:01:20.3]} 39... Ra1 {[%clk 0:00:11.9]} 40. Bxg6
{[%clk 0:01:19.8]} 40... hxg6 {[%clk 0:00:11.3]} 41. Rxg6+ {[%clk 0:01:19.9]}
41... Kf7 {[%clk 0:00:12.7]} 42. Ra6 {[%clk 0:01:18.9]} 42... Rb8 {[%clk
0:00:11.1]} 43. Rxa7+ {[%clk 0:01:17.6]} 43... Kg8 {[%clk 0:00:12.7]} 44. Ree7
{[%clk 0:00:52.2]} 44... Rb2+ {[%clk 0:00:09.5]} 45. Kc3 {[%clk 0:00:49.8]}
45... Rb8 {[%clk 0:00:10.9]} 46. Rg7+ {[%clk 0:00:49.8]} 46... Kf8 {[%clk
0:00:12.4]} 47. Rxg5 {[%clk 0:00:47.9]} 47... Rc1+ {[%clk 0:00:12.2]} 48. Kd2
{[%clk 0:00:46.8]} 48... Rxc4 {[%clk 0:00:13.4]} 49. Rf5+ {[%clk 0:00:37.4]}
49... Kg8 {[%clk 0:00:13.6]} 50. Re5 {[%clk 0:00:37.3]} 50... Rd4+ {[%clk
0:00:13.2]} 51. Ke3 {[%clk 0:00:38]} 51... Rc4 {[%clk 0:00:12.7]} 52. d6 {[%clk
0:00:36.9]} 52... Rc3+ {[%clk 0:00:13.7]} 53. Kf4 {[%clk 0:00:37.4]} 53... Rc4+
{[%clk 0:00:14.6]} 54. Kg5 {[%clk 0:00:38.1]} 54... Rd4 {[%clk 0:00:14.7]} 55.
d7 {[%clk 0:00:37.8]} 55... Kf8 {[%clk 0:00:12.9]} 56. Rxc5 {[%clk 0:00:36.8]}
56... Rd8 {[%clk 0:00:13.9]} 57. Rc8 {[%clk 0:00:36]} 57... Ke7 {[%clk
0:00:14.4]} 58. Rxd8 {[%clk 0:00:36.9]} 58... Kxd8 {[%clk 0:00:16.3]} 59. f4
{[%clk 0:00:37]} 1-0